{"text_format":"2","workbook":"xlsx","n_sheets":1,"sheets":["Munka1"],"not_rendered":{"charts":0,"images":0,"macros":0,"external_links":0,"defined_names":0,"comments":0,"pivot_tables":0},"unopened":[],"bounds":{"document_bytes":16777216,"sheet_cells":100000,"run_cost":"one","rows_first":2000,"rows_last":500,"rows_between":2000,"halvings":0,"cell_chars":16384,"cell_head_chars":4096},"cells_cut":0,"cells_raw":0,"read":"whole","date_system":"1900"}

{"sheet":"Munka1","index":0,"n_rows":22,"n_cols":9,"rows_kept":22,"cut":false,"hidden":false,"merged":[[21,7,21,8],[29,7,29,8],[37,7,37,8],[42,7,42,8]]}
[null,null,null,"KÖLTSÉGVETÉS"]
[]
[null,null,"                                 Bőrklinika 3. emeleti vizesblokk elektromos "]
[]
["Ssz.","Tételszám","Tétel szövege","Menny.","Egység","Anyag egységár","Díj egységre","Anyag összesen","Díj összesen"]
[1,"71-000-1.3.1","Bontási munkák",1,"klt",0,0,{"$f":"ROUND(D6*F6, 0)","v":0},{"$f":"ROUND(D6*G6, 0)","v":0}]
[2,"71-001-1.1.1.1.1-0110116","Merev, simafalú műanyag védőcső elhelyezése, elágazó dobozokkal, horonyvéséssel, vékonyfalú kivitelben, könnyű mechanikai igénybevételre, Névleges méret: 11-16 mm HYDRO-THERM beltéri Mü III. vékonyfalú, hajlítható merev műanyag szürke védőcső 16 mm, Kód: MU-III 16",30,"m      ",0,0,0,0]
[3,"71-001-24.2.1-0533551","Műanyag vezetékcsatorna, padlószegélycsatorna elhelyezése előre elkészített tartószerkezetre szerelve, idomdarabokkal, szélesség:  40 mm-ig LEGRAND DLP mini csatorna 40x16 mm, fehér, R: 0 300 31",10,"m",0,0,0,0]
[4,"71-002-1.1-0210002","Szigetelt vezeték elhelyezése védőcsőbe húzva vagy vezetékcsatornába fektetve, rézvezetővel, leágazó kötésekkel, szigetelés ellenállás méréssel, a szerelvényekhez csatlakozó vezetékvégek bekötése nélkül, keresztmetszet: 0,5-2,5 mm2 PannonCom-Kábel H07V-U 450/750V 1x1,5 mm2, tömör rézvezetővel (MCu)",60,"m      ",0,0,0,0]
[5,"71-002-1.1-0210003","Szigetelt vezeték elhelyezése védőcsőbe húzva vagy vezetékcsatornába fektetve, rézvezetővel, leágazó kötésekkel, szigetelés ellenállás méréssel, a szerelvényekhez csatlakozó vezetékvégek bekötése nélkül, keresztmetszet: 0,5-2,5 mm2 PannonCom-Kábel H07V-U 450/750V 1x2,5 mm2, tömör rézvezetővel (MCu)",15,"m      ",0,0,0,0]
[6,"71-002-21.2-0221524","Kábelszerű vezeték elhelyezése előre elkészített tartószerkezetre, 1-12 erű rézvezetővel, elágazó dobozokkal és kötésekkel, szigetelési elenállás méréssel, a szerelvényekhez csatlakozó vezetékvégek bekötése nélkül, keresztmetszet: 4 mm2 PannonCom-Kábel, NYM 300/500V 3x4 mm2, tömör rézvezetővel (MBCu)",10,"m      ",0,0,0,0]
[7,"71-005-1.11.1.1.1-0562094","Komplett világítási  és telekommunikációs szerelvények, Csatlakozóaljzat elhelyezése, süllyesztve, 16A, földelt, egyes csatlakozóaljzat (2P+F) LEGRAND Valena 2P+F csatlakozóaljzat monoblokk, védett kivitelbenm",2,"db     ",0,0,0,0]
[8,"71-005-1.11.1.1.1-0562094","Komplett világítási  és telekommunikációs szerelvények, kétsarkú kapcsoló elhelyezése, süllyesztve, 16A,  LEGRAND Valena védett kivitelben ",4,"db",0,0,0,0]
[9,"71-009-63-0624165","Meglévő folyosói elosztóban leágazás kialakítása 1db 25a, 1p, lomha kioldású kismegszekítóval",1,"db",0,0,0,0]
[10,"71-009-63-0624166","Kiselosztó elhelyezése az alábbi észülékekkel: - 1 db 25A, 30 mA 2 p kombi ÁVK,-2 db 16 A 1p kismegszakító,- 2 db 10A, 1p kismegszakító, a szükséges vezetékezéssel",1,"db",0,0,0,0]
[11,"71-010-1-0000005","Falon kívüli fénycsőlámpa, opál burával, 2x28W fényforrással, kompletten. IP44 védettséggel",5,"db",0,0,0,0]
[12,null,"Vészhívőszett elhelyezése a betegfürdetőbe, vezetkezéssel kompletten, meglévő nővérhívó rendszerbe integrálva",1,"klt",0,0,0,0]
[13,"71-013-46","Érintésvédelmi mérés és jegyzőkönyv készítése",10,"mp*",0,0,{"$f":"ROUND(D18*F18, 0)","v":0},{"$f":"ROUND(D18*G18, 0)","v":0}]
[]
[null,null,"ÖSSZESEN:",{"$nulls":4},{"$f":"SUM(H6:H19)","v":0},{"$f":"SUM(I6:I19)","v":0}]
[]
[null,null,"ANYAG+DÍJ ÖSSZESEN",{"$nulls":4},{"$f":"H20+I20","v":0}]